bitfinex/quotes_BTCUSD_20240719
["timestamp","ask_amount","ask_price","bid_price","bid_amount"]
[1721381984851,2.31455768,63894.0,63893.0,0.009174]
[1721381985009,2.19624518,63894.0,63893.0,0.009174]
[1721381985252,2.24624518,63894.0,63893.0,0.009174]
[1721381985654,2.19624518,63894.0,63893.0,0.009174]
[1721381985858,2.21024678,63894.0,63893.0,0.009174]
[1721381986295,2.19624678,63894.0,63893.0,0.009174]
[1721381986645,2.05589721,63894.0,63893.0,0.009174]
[1721381987065,2.06989721,63894.0,63893.0,0.009174]
[1721381987470,2.05589721,63894.0,63893.0,0.009174]
[1721381987803,2.06989721,63894.0,63893.0,0.009174]
[1721381988152,2.05589721,63894.0,63893.0,0.009174]
[1721381988359,2.06989721,63894.0,63893.0,0.009174]
[1721381989012,2.05589687,63894.0,63893.0,0.009174]
[1721381989339,2.06989687,63894.0,63893.0,0.009174]
[1721381989817,2.05589687,63894.0,63893.0,0.009174]
[1721381990112,2.12903129,63894.0,63893.0,0.009174]
[1721381990311,2.26938086,63894.0,63893.0,0.009174]
[1721381990714,2.28338086,63894.0,63893.0,0.009174]
[1721381990938,2.26938086,63894.0,63893.0,0.009174]
[1721381991252,2.28338086,63894.0,63893.0,0.009174]
[1721381991483,2.26938086,63894.0,63893.0,0.009174]
[1721381991896,2.25962648,63894.0,63893.0,0.009174]
[1721381992097,2.28338162,63894.0,63893.0,0.009174]
[1721381992505,2.26938162,63894.0,63893.0,0.009174]
[1721381992738,2.11503205,63894.0,63893.0,0.009174]
[1721381992959,2.12903205,63894.0,63893.0,0.009174]
[1721381993153,2.46505005,63894.0,63893.0,0.009174]
[1721381994245,2.46505005,63894.0,63893.0,1e-08]
[1721381994542,2.46505005,63894.0,63887.0,0.009174]
[1721381994543,1.910054,63892.0,63887.0,0.009174]
[1721381994794,2.35154045,63892.0,63887.0,0.009174]
[1721381995305,2.35328528,63892.0,63887.0,0.009174]
[1721381995935,2.36728528,63892.0,63887.0,0.009174]
[1721381996338,1.345664,63888.0,63887.0,0.009174]
[1721381996507,2.63099595,63888.0,63887.0,0.009174]
[1721381996718,2.77582561,63888.0,63887.0,0.009174]
[1721381997645,2.77756937,63888.0,63887.0,0.009174]
[1721381998282,2.79156937,63888.0,63887.0,0.009174]
[1721381999432,2.79156937,63888.0,63871.0,0.002]
[1721381999434,0.662389,63872.0,63871.0,0.002]
[1721381999627,1.26613564,63872.0,63871.0,0.002]
[1721381999829,1.70226164,63872.0,63871.0,0.002]
[1721382000036,1.8078925,63872.0,63871.0,0.002]
[1721382000779,1.5087665,63872.0,63871.0,0.002]
[1721382000989,1.4947665,63872.0,63871.0,0.002]
[1721382001400,1.5087665,63872.0,63871.0,0.002]
[1721382002006,1.5227665,63872.0,63871.0,0.002]
[1721382002212,1.5727665,63872.0,63871.0,0.002]
[1721382002426,1.8858925,63872.0,63871.0,0.002]
[1721382002630,2.0858925,63872.0,63871.0,0.002]
[1721382002855,2.09501009,63872.0,63871.0,0.002]
[1721382003332,2.08101009,63872.0,63871.0,0.002]
[1721382003536,2.07235966,63872.0,63871.0,0.002]
[1721382003905,2.27235966,63872.0,63871.0,0.002]
[1721382004305,2.59948566,63872.0,63871.0,0.002]
[1721382004506,2.08635966,63872.0,63871.0,0.002]
[1721382004769,2.28635966,63872.0,63871.0,0.002]
[1721382004905,2.58548566,63872.0,63871.0,0.002]
[1721382005308,2.28635966,63872.0,63871.0,0.002]
[1721382005516,3.09948566,63872.0,63871.0,0.002]
[1721382005724,3.08548566,63872.0,63871.0,0.002]
[1721382006130,3.09948566,63872.0,63871.0,0.002]
[1721382006396,3.09948566,63872.0,63853.0,0.80924162]
[1721382006397,1.91337,63869.0,63853.0,0.80924162]
[1721382006593,0.783035,63854.0,63853.0,0.80924162]
[1721382006765,1.64083074,63854.0,63853.0,0.80924162]
[1721382007432,1.57693074,63854.0,63853.0,0.80924162]
[1721382007856,1.5866745,63854.0,63853.0,0.80924162]
[1721382008065,1.5866745,63854.0,63853.0,0.80424162]
[1721382008312,1.9498885,63854.0,63853.0,0.80424162]
[1721382008516,1.8998885,63854.0,63853.0,0.80424162]
[1721382008965,1.8998885,63854.0,63847.0,0.009174]
[1721382008966,0.2,63852.0,63847.0,0.009174]
[1721382009119,2.31271374,63852.0,63847.0,0.009174]
[1721382009321,2.46820878,63852.0,63847.0,0.009174]
[1721382009519,1.146385,63846.0,63845.0,0.0001]
[1721382009891,1.25076674,63846.0,63845.0,0.0001]
[1721382010097,1.35076674,63846.0,63845.0,0.0001]
[1721382010317,1.08224813,63846.0,63845.0,0.0001]
[1721382010499,1.0392575,63846.0,63845.0,0.0001]
[1721382010750,0.47162276,63846.0,63845.0,0.0001]
[1721382011766,0.78487576,63846.0,63845.0,0.0001]
[1721382011975,0.79887576,63846.0,63845.0,0.0001]
[1721382012207,0.89887576,63846.0,63845.0,0.0001]
[1721382012415,1.3665105,63846.0,63845.0,0.0001]
[1721382012614,1.0532575,63846.0,63845.0,0.0001]
[1721382013016,1.0622575,63846.0,63845.0,0.0001]
[1721382013218,1.3615105,63846.0,63845.0,0.0001]
[1721382013619,1.0482575,63846.0,63845.0,0.0001]
[1721382013828,0.58062276,63846.0,63845.0,0.0001]
[1721382014243,0.89387576,63846.0,63845.0,0.0001]
[1721382014454,1.3615105,63846.0,63845.0,0.0001]
[1721382015071,1.48179574,63846.0,63845.0,0.0001]
[1721382015193,1.62119574,63846.0,63845.0,0.0001]
[1721382015419,1.61119574,63846.0,63845.0,0.0001]
[1721382015820,1.5599105,63846.0,63845.0,0.0001]
[1721382016065,1.5099105,63846.0,63845.0,0.0001]
[1721382016215,1.8141635,63846.0,63845.0,0.0001]
[1721382016418,1.8051635,63846.0,63845.0,0.0001]
[1721382016637,1.8251635,63846.0,63845.0,0.0001]
[1721382016834,1.97951307,63846.0,63845.0,0.0001]
[1721382017409,1.99351307,63846.0,63845.0,0.0001]
[1721382017988,1.98351307,63846.0,63845.0,0.0001]
[1721382018194,1.98351307,63846.0,63845.0,0.001013]
[1721382018399,1.8431635,63846.0,63845.0,0.001013]
[1721382019057,1.8931635,63846.0,63845.0,0.001013]
[1721382019519,1.9074535,63846.0,63845.0,0.001013]
[1721382019761,1.91666988,63846.0,63845.0,0.001013]
[1721382019969,2.77801945,63846.0,63845.0,0.001013]
[1721382020489,3.09127245,63846.0,63845.0,0.001013]
[1721382020700,2.77801945,63846.0,63845.0,0.001013]
[1721382020908,2.57366988,63846.0,63845.0,0.001013]
[1721382021951,1.53912688,63846.0,63845.0,0.001013]
[1721382022183,1.71297988,63846.0,63845.0,0.001013]
[1721382023240,1.39972688,63846.0,63845.0,0.001013]
[1721382023444,1.0772575,63846.0,63845.0,0.001013]
[1721382023816,0.9772575,63846.0,63845.0,0.001013]
[1721382024393,0.9632575,63846.0,63845.0,0.001013]
[1721382024592,0.9532575,63846.0,63845.0,0.001013]
[1721382024796,0.9632575,63846.0,63845.0,0.001013]
[1721382025046,1.0632575,63846.0,63845.0,0.001013]
[1721382025221,1.0492575,63846.0,63845.0,0.001013]
[1721382025675,1.0582575,63846.0,63845.0,0.001013]
[1721382026234,0.58162276,63846.0,63845.0,0.001013]
[1721382026671,0.58162276,63846.0,63845.0,0.0825943]
[1721382026872,0.57162276,63846.0,63845.0,0.07818779]
[1721382027228,0.57162276,63846.0,63840.0,0.00440651]
[1721382027229,1.77589198,63846.0,63840.0,0.00440651]
[1721382027436,1.77589198,63846.0,63829.0,0.009174]
[1721382027437,0.436761,63832.0,63829.0,0.009174]
[1721382027648,1.26966474,63832.0,63829.0,0.009174]
[1721382027864,0.78333,63830.0,63829.0,0.009174]
[1721382028090,1.269662,63830.0,63829.0,0.009174]
[1721382028300,2.0524515,63830.0,63829.0,0.009174]
[1721382028513,2.20680107,63830.0,63829.0,0.009174]
[1721382030304,2.35730107,63830.0,63829.0,0.009174]
[1721382030536,2.34330107,63830.0,63829.0,0.009174]
[1721382030918,2.2169515,63830.0,63829.0,0.009174]
[1721382031144,2.2029515,63830.0,63829.0,0.009174]
[1721382031819,2.2169515,63830.0,63829.0,0.009174]
[1721382032458,0.05,63819.0,63807.0,0.009174]
[1721382032664,0.69643,63812.0,63807.0,0.009174]
[1721382033002,1.57765174,63812.0,63807.0,0.009174]
[1721382033206,1.66477174,63812.0,63807.0,0.009174]
[1721382033910,1.6665155,63812.0,63807.0,0.009174]
[1721382034332,1.83486507,63812.0,63807.0,0.009174]
[1721382034543,1.72392,63808.0,63807.0,0.009174]
[1721382034744,1.61486174,63808.0,63807.0,0.009174]
[1721382034945,1.75871759,63808.0,63807.0,0.009174]
[1721382035148,1.70689841,63808.0,63807.0,0.009174]
[1721382035352,1.86124798,63808.0,63807.0,0.009174]
[1721382037163,1.82095507,63808.0,63807.0,0.009174]
[1721382037363,1.83495507,63808.0,63807.0,0.009174]
[1721382037675,1.88495507,63808.0,63807.0,0.009174]
[1721382037821,1.84895507,63808.0,63807.0,0.009174]
[1721382038040,1.83495507,63808.0,63807.0,0.009174]
[1721382038240,1.82095507,63808.0,63807.0,0.009174]
[1721382038440,1.84895507,63808.0,63807.0,0.009174]
[1721382038823,1.83495507,63808.0,63807.0,0.009174]
[1721382039024,1.87524798,63808.0,63807.0,0.009174]
[1721382039228,1.72089841,63808.0,63807.0,0.009174]
[1721382039841,0.68057841,63808.0,63807.0,0.009174]
[1721382040047,0.3268455,63808.0,63807.0,0.009174]
[1721382040249,0.6542855,63808.0,63807.0,0.009174]
[1721382040492,0.9537255,63808.0,63807.0,0.009174]
[1721382040905,0.6542855,63808.0,63807.0,0.009174]
[1721382041105,0.9537255,63808.0,63807.0,0.009174]
[1721382041510,0.9627255,63808.0,63807.0,0.009174]
[1721382041734,0.9397255,63808.0,63807.0,0.009174]
[1721382041945,1.0397255,63808.0,63807.0,0.009174]
[1721382042140,1.0537255,63808.0,63807.0,0.009174]
[1721382042586,1.039537,63808.0,63807.0,0.009174]
[1721382042977,1.047537,63808.0,63807.0,0.009174]
[1721382043183,1.054537,63808.0,63807.0,0.009174]
[1721382043565,1.047537,63808.0,63807.0,0.009174]
[1721382043752,1.4970733,63808.0,63807.0,0.009174]
[1721382043959,1.5050733,63808.0,63807.0,0.009174]
[1721382044255,1.4970733,63808.0,63807.0,0.009174]
[1721382044454,1.360977,63808.0,63807.0,0.009174]
[1721382044932,1.352977,63808.0,63807.0,0.009174]
[1721382045133,1.360977,63808.0,63807.0,0.009174]
[1721382045323,1.368977,63808.0,63807.0,0.009174]
[1721382046285,1.360977,63808.0,63807.0,0.009174]
[1721382046491,1.5020747,63808.0,63807.0,0.009174]
[1721382046685,1.5100747,63808.0,63807.0,0.009174]
[1721382047109,1.5020747,63808.0,63807.0,0.009174]
[1721382047765,1.8235147,63808.0,63807.0,0.009174]
[1721382048094,2.0171147,63808.0,63807.0,0.009174]
[1721382048288,2.0401147,63808.0,63807.0,0.009174]
[1721382048492,2.1029207,63808.0,63807.0,0.009174]
[1721382048905,2.0949207,63808.0,63807.0,0.009174]
[1721382049056,2.0869207,63808.0,63807.0,0.009174]
[1721382049257,2.4123607,63808.0,63807.0,0.009174]
[1721382049526,2.4263607,63808.0,63807.0,0.009174]
[1721382049728,2.4003607,63808.0,63807.0,0.009174]
[1721382049939,2.4003607,63808.0,63791.0,0.002]
[1721382049940,1.410831,63792.0,63791.0,0.002]
[1721382050153,2.13566231,63792.0,63791.0,0.002]
[1721382050368,1.92214431,63792.0,63791.0,0.002]
[1721382050586,1.94514431,63792.0,63791.0,0.002]
[1721382051018,2.44514431,63792.0,63791.0,0.002]
[1721382051444,2.76040607,63792.0,63791.0,0.002]
[1721382051654,1.96088807,63792.0,63791.0,0.002]
[1721382051861,2.16088807,63792.0,63791.0,0.002]
[1721382052473,2.14688807,63792.0,63791.0,0.002]
[1721382052677,2.17488807,63792.0,63791.0,0.002]
[1721382052883,2.68840607,63792.0,63791.0,0.002]
[1721382053293,2.67440607,63792.0,63791.0,0.002]
[1721382054124,2.66040607,63792.0,63791.0,0.002]
[1721382054330,2.67440607,63792.0,63791.0,0.002]
[1721382054954,2.68840607,63792.0,63791.0,0.002]
[1721382055128,2.67440607,63792.0,63791.0,0.002]
[1721382055335,2.66040607,63792.0,63791.0,0.002]
[1721382055538,2.67440607,63792.0,63791.0,0.002]
[1721382055741,2.68840607,63792.0,63791.0,0.002]
[1721382055945,2.67816185,63792.0,63791.0,0.002]
[1721382056145,2.66040607,63792.0,63791.0,0.002]
[1721382056543,2.67440607,63792.0,63791.0,0.002]
[1721382057264,2.68840607,63792.0,63791.0,0.002]
[1721382057578,2.94267207,63792.0,63791.0,0.002]
[1721382057787,3.27019007,63792.0,63791.0,0.002]
[1721382057917,3.25193248,63792.0,63791.0,0.002]
[1721382058320,3.27019007,63792.0,63791.0,0.002]
[1721382058521,2.95241454,63792.0,63791.0,0.002]
[1721382058965,2.96641454,63792.0,63791.0,0.002]
[1721382059175,2.9774293,63792.0,63791.0,0.002]
[1721382059551,2.7231633,63792.0,63791.0,0.002]
[1721382060403,3.60888007,63792.0,63791.0,0.002]
[1721382060610,3.69544164,63792.0,63791.0,0.002]
[1721382060859,3.68144164,63792.0,63791.0,0.002]
[1721382061006,3.00192407,63792.0,63791.0,0.002]
[1721382061209,3.23372407,63792.0,63791.0,0.002]
[1721382061416,2.67440607,63792.0,63791.0,0.002]
[1721382061987,2.98792407,63792.0,63791.0,0.002]
[1721382062211,2.69814984,63792.0,63791.0,0.002]
[1721382062416,2.72012506,63792.0,63791.0,0.002]
[1721382062755,2.70612506,63792.0,63791.0,0.002]
[1721382063009,2.70612506,63792.0,63771.0,0.002]
[1721382063010,1.493788,63782.0,63771.0,0.002]
[1721382063240,2.21103774,63782.0,63771.0,0.002]
[1721382063458,2.31103774,63782.0,63771.0,0.002]
[1721382063660,2.23003774,63782.0,63771.0,0.002]
[1721382064063,2.2317815,63782.0,63771.0,0.002]
[1721382064271,2.1817815,63782.0,63771.0,0.002]
[1721382064493,2.1957815,63782.0,63771.0,0.002]
[1721382064898,1.8962135,63782.0,63771.0,0.002]
[1721382065455,1.8822135,63782.0,63771.0,0.002]
[1721382065864,1.8962135,63782.0,63771.0,0.002]
[1721382066066,2.05056307,63782.0,63771.0,0.002]
[1721382066467,0.9680455,63782.0,63776.0,0.0375]
[1721382066671,0.6544775,63782.0,63778.0,0.07717479]
[1721382066856,0.97734287,63782.0,63781.0,0.01341129]
[1721382067068,0.97734287,63782.0,63781.0,0.009185]
[1721382067277,1.34091087,63782.0,63781.0,0.009185]
[1721382067476,1.88442844,63782.0,63781.0,0.009185]
[1721382067681,1.80642844,63782.0,63781.0,0.009185]
[1721382067899,1.82042844,63782.0,63781.0,0.009185]
[1721382068104,1.94862844,63782.0,63781.0,0.009185]
[1721382068306,2.04862844,63782.0,63781.0,0.009185]
[1721382068516,2.01262844,63782.0,63781.0,0.009185]
[1721382069493,2.06262844,63782.0,63781.0,0.009185]
[1721382070297,2.03562844,63782.0,63781.0,0.009185]
[1721382072302,2.08562844,63782.0,63781.0,0.009185]
[1721382072677,2.09537004,63782.0,63781.0,0.009185]
[1721382073300,2.06737004,63782.0,63781.0,0.009185]
[1721382073899,1.86302047,63782.0,63781.0,0.009185]
[1721382074100,1.90327887,63782.0,63781.0,0.009185]
[1721382074273,1.88927887,63782.0,63781.0,0.009185]
[1721382074893,1.91727887,63782.0,63781.0,0.009185]
[1721382075299,1.91302047,63782.0,63781.0,0.009185]
[1721382075516,2.06737004,63782.0,63781.0,0.009185]
[1721382076184,2.08137004,63782.0,63781.0,0.009185]
[1721382076587,2.06737004,63782.0,63781.0,0.009185]
[1721382076788,1.91302047,63782.0,63781.0,0.009185]
[1721382077639,1.89902047,63782.0,63781.0,0.009185]
[1721382077809,1.91302047,63782.0,63781.0,0.009185]
[1721382078188,1.84902047,63782.0,63781.0,0.009185]
[1721382078415,1.84902036,63782.0,63781.0,0.009185]
[1721382078621,1.87702036,63782.0,63781.0,0.009185]
[1721382078822,2.03108574,63782.0,63781.0,0.009185]
[1721382079017,2.01708574,63782.0,63781.0,0.009185]
[1721382079474,2.03108574,63782.0,63781.0,0.009185]
[1721382080537,2.08108574,63782.0,63781.0,0.009185]
[1721382081529,2.07134425,63782.0,63781.0,0.009185]
[1721382081786,2.0810822,63782.0,63781.0,0.009185]
[1721382081910,2.0580822,63782.0,63781.0,0.009185]
[1721382082988,1.8682822,63782.0,63781.0,0.009185]
[1721382084595,1.71421682,63782.0,63781.0,0.009185]
[1721382084794,1.71421722,63782.0,63781.0,0.009185]
[1721382084997,1.40064922,63782.0,63781.0,0.009185]
[1721382085400,1.40064963,63782.0,63781.0,0.009185]
[1721382089376,1.90491763,63782.0,63781.0,0.00300131]
[1721382089598,1.147554,63778.0,63771.0,0.002]
[1721382089799,1.58971826,63778.0,63771.0,0.002]
[1721382090610,1.36341826,63778.0,63771.0,0.002]
[1721382090985,1.36341826,63778.0,63774.0,0.0375]
[1721382091190,1.36341582,63778.0,63774.0,0.0375]
[1721382091814,1.36341582,63778.0,63762.0,0.39084079]
[1721382091815,0.40806182,63778.0,63749.0,0.51532779]
[1721382092082,0.40806182,63778.0,63757.0,0.0942]
[1721382092083,0.470514,63760.0,63757.0,0.0942]
[1721382092255,0.94830806,63760.0,63757.0,0.0942]
[1721382092444,0.94830806,63760.0,63758.0,0.07717479]
[1721382092445,0.41121974,63760.0,63758.0,0.07717479]
[1721382092612,0.1561255,63760.0,63758.0,0.07717479]
[1721382092813,0.1561255,63760.0,63759.0,0.0943]
[1721382093070,0.1561255,63760.0,63759.0,0.0987862]
[1721382093422,0.1561255,63760.0,63759.0,0.0943]
[1721382093656,0.1561255,63760.0,63759.0,0.0987862]
[1721382093904,0.3129635,63760.0,63759.0,0.0987862]
[1721382094657,0.3219635,63760.0,63759.0,0.0987862]
[1721382095060,0.1651255,63760.0,63759.0,0.0987862]
[1721382095243,0.01074376,63760.0,63759.0,0.0987862]
[1721382095613,0.01974376,63760.0,63759.0,0.0987862]
[1721382095944,0.17658176,63760.0,63759.0,0.0987862]
[1721382096156,0.49025776,63760.0,63759.0,0.0987862]
[1721382096353,0.17658176,63760.0,63759.0,0.0943]
[1721382096935,0.6446395,63760.0,63759.0,0.0943]
[1721382097071,0.3309635,63760.0,63759.0,0.0943]
[1721382097272,0.3309635,63760.0,63759.0,0.09878596]
[1721382098135,0.01974376,63760.0,63759.0,0.09878596]
[1721382098335,0.01974376,63760.0,63759.0,0.25562596]
[1721382098578,0.01974376,63760.0,63759.0,0.56930696]
[1721382098793,0.01974376,63760.0,63759.0,0.88298796]
[1721382098985,0.00174376,63760.0,63759.0,0.88298796]
[1721382099193,0.01974376,63760.0,63759.0,1.19666896]
[1721382099595,0.01074376,63760.0,63759.0,1.19666896]
[1721382099812,0.01274376,63760.0,63759.0,1.19666896]
[1721382100440,0.01374376,63760.0,63759.0,1.19666896]
[1721382100860,0.00474376,63760.0,63759.0,1.19666896]
[1721382101736,0.00574376,63760.0,63759.0,1.19866896]
[1721382101956,0.00574376,63760.0,63759.0,0.47710696]
[1721382102165,0.00574376,63760.0,63759.0,0.00658596]
[1721382102166,0.6306395,63760.0,63759.0,0.00658596]
[1721382102387,0.6306395,63760.0,63759.0,0.00458596]
[1721382102388,0.95304817,63760.0,63759.0,0.00458596]
[1721382102600,0.95304817,63760.0,63759.0,0.0001]
[1721382102601,1.42978812,63760.0,63759.0,0.0001]
[1721382102811,1.42778812,63760.0,63759.0,0.0021]
[1721382103018,1.36572417,63760.0,63759.0,0.0041]
[1721382103221,1.36572417,63760.0,63759.0,0.0021]
[1721382103625,1.3569915,63760.0,63759.0,0.0021]
[1721382103830,1.36781856,63760.0,63759.0,0.0021]
[1721382104236,1.36681856,63760.0,63759.0,0.0001]
[1721382104412,1.36781856,63760.0,63759.0,0.0001]
[1721382106741,1.3569915,63760.0,63759.0,0.0001]
[1721382106937,1.36771579,63760.0,63759.0,0.0001]
[1721382110030,0.1591255,63760.0,63759.0,0.0001]
[1721382110233,0.3159635,63760.0,63759.0,0.0001]
[1721382110482,0.3159635,63760.0,63759.0,0.00456258]
[1721382110654,0.3159635,63760.0,63759.0,0.0001]
[1721382110961,0.6296395,63760.0,63759.0,0.0001]
[1721382112611,0.47525776,63760.0,63759.0,0.00406674]
[1721382112815,0.47525776,63760.0,63759.0,0.0001]
[1721382113022,0.47525776,63760.0,63759.0,0.00406674]
[1721382113224,0.47525776,63760.0,63759.0,0.0001]
[1721382113426,0.47525776,63760.0,63759.0,0.00406674]
[1721382113667,0.47525776,63760.0,63759.0,0.0001]
[1721382113858,0.47525776,63760.0,63759.0,0.00406674]
[1721382114000,0.47525776,63760.0,63759.0,0.0001]
[1721382114209,0.47525776,63760.0,63759.0,0.00407396]
[1721382114408,0.47525776,63760.0,63759.0,0.0001]
[1721382114623,0.47525776,63760.0,63759.0,0.00407396]
[1721382114819,0.47525776,63760.0,63759.0,0.0001]
[1721382115035,0.47525776,63760.0,63759.0,0.00407396]
[1721382115237,0.47525776,63760.0,63759.0,0.0001]
[1721382115442,0.47525776,63760.0,63759.0,0.00407396]
[1721382115682,0.47525776,63760.0,63759.0,0.0001]
[1721382115962,0.78874502,63760.0,63759.0,0.001013]
[1721382116722,0.798923,63760.0,63759.0,0.001013]
[1721382118158,0.78874502,63760.0,63759.0,0.001013]
[1721382118586,0.78874502,63760.0,63759.0,0.00498696]
[1721382118887,0.78874502,63760.0,63759.0,0.001013]
[1721382119123,0.78874502,63760.0,63759.0,0.00498696]
[1721382119248,0.79928479,63760.0,63759.0,0.001013]
[1721382119445,0.79928479,63760.0,63759.0,0.00498696]
[1721382119695,0.79927207,63760.0,63759.0,0.00498696]
[1721382119869,0.91056548,63760.0,63759.0,0.00498696]
[1721382120277,0.90003843,63760.0,63759.0,0.001013]
[1721382120480,0.78874502,63760.0,63759.0,0.001013]
[1721382120682,0.79916129,63760.0,63759.0,0.001013]
[1721382121975,0.79929507,63760.0,63759.0,0.001013]
[1721382123747,1.72742881,63760.0,63759.0,0.001013]
[1721382124025,1.92114174,63760.0,63759.0,0.001013]
[1721382124157,2.09891954,63760.0,63759.0,0.001013]
[1721382124559,1.62989397,63760.0,63759.0,0.001013]
[1721382124784,1.60642199,63760.0,63759.0,0.001013]
[1721382125089,1.37835281,63760.0,63759.0,0.001013]
[1721382125308,1.06467681,63760.0,63759.0,0.001013]
[1721382125676,1.05267681,63760.0,63759.0,0.001013]
[1721382125855,0.49861907,63760.0,63759.0,0.001013]
[1721382126488,0.81229507,63760.0,63759.0,0.00454216]
[1721382126785,0.49661907,63760.0,63759.0,0.001013]
[1721382127390,0.48261907,63760.0,63759.0,0.001013]
[1721382127570,0.79629507,63760.0,63759.0,0.00454216]
[1721382127766,0.80529507,63760.0,63759.0,0.001013]
[1721382127928,0.50261907,63760.0,63759.0,0.001013]
[1721382128129,0.49206902,63760.0,63759.0,0.001013]
[1721382128375,0.50279237,63760.0,63759.0,0.001013]
[1721382128577,0.02155031,63760.0,63759.0,0.001013]
[1721382128775,0.02155031,63760.0,63759.0,0.0049833]
[1721382128776,0.01055502,63760.0,63759.0,0.0049833]
[1721382128983,0.01955502,63760.0,63759.0,0.0049833]
[1721382129731,0.01955502,63760.0,63759.0,0.8833853]
[1721382130494,0.00155502,63760.0,63759.0,1.1970663]
[1721382131217,0.00155502,63760.0,63759.0,1.32733935]
[1721382131452,0.01155502,63760.0,63759.0,1.32733935]
[1721382131663,0.01155502,63760.0,63759.0,1.1970663]
[1721382131799,0.01155502,63760.0,63759.0,1.71512904]
[1721382132000,0.01155502,63760.0,63759.0,1.7954045]
[1721382132001,0.00255502,63760.0,63759.0,1.7954045]
[1721382132201,0.00255502,63760.0,63759.0,1.8454045]
[1721382132457,0.00355502,63760.0,63759.0,1.8684045]
[1721382132995,0.00255502,63760.0,63759.0,1.8684045]
[1721382133764,0.00155502,63760.0,63759.0,1.8684045]
[1721382134318,0.00355502,63760.0,63759.0,1.74612904]
[1721382134526,0.00255502,63760.0,63759.0,1.86939416]
[1721382134729,0.00155502,63760.0,63759.0,1.86839416]
[1721382135052,0.00255502,63760.0,63759.0,1.86939416]
[1721382135250,0.00355502,63760.0,63759.0,1.87639416]
[1721382135881,0.00355502,63760.0,63759.0,2.35517516]
[1721382136177,0.00083,63768.0,63767.0,1.461384]
[1721382136432,0.00083,63768.0,63767.0,2.03736835]
[1721382137287,0.00083,63768.0,63767.0,2.25566835]
[1721382137415,0.00083,63768.0,63767.0,2.25564415]
[1721382138262,0.00183,63768.0,63767.0,2.26964415]
[1721382138482,0.00183,63768.0,63767.0,2.28364415]
[1721382138483,0.00283,63768.0,63767.0,2.28364415]
[1721382138700,0.00383,63768.0,63767.0,2.29764415]
[1721382138930,0.00083,63768.0,63767.0,2.25564415]
[1721382139114,0.00083,63768.0,63767.0,2.2556432]
[1721382139346,0.00083,63768.0,63767.0,2.5692842]
[1721382139538,0.00083,63768.0,63767.0,2.6692842]
[1721382139697,0.00083,63768.0,63767.0,2.71620566]
[1721382139855,0.00083,63768.0,63767.0,2.6692842]
[1721382140356,0.00083,63768.0,63767.0,2.7441435]
[1721382140560,0.00083,63768.0,63767.0,2.73013295]
[1721382140783,0.00083,63768.0,63767.0,2.68327344]
[1721382141192,0.00083,63768.0,63767.0,2.69727344]
[1721382141396,0.002794,63791.0,63767.0,2.69727344]
[1721382141397,0.002794,63791.0,63790.0,1.134848]
[1721382141613,0.46387871,63792.0,63791.0,0.470284]
[1721382141820,0.46387871,63792.0,63791.0,1.09733]
[1721382141821,0.00083,63792.0,63791.0,1.09733]
[1721382141968,0.00083,63792.0,63791.0,1.10082268]
[1721382142350,0.00083,63792.0,63791.0,1.15402268]
[1721382142551,0.00083,63792.0,63791.0,1.64492742]
[1721382143189,0.00083,63792.0,63791.0,1.69492742]
[1721382143790,0.00083,63792.0,63791.0,1.70292742]
[1721382144237,0.00183,63792.0,63791.0,1.91152742]
[1721382144566,0.00183,63792.0,63791.0,1.92552742]
[1721382145063,0.00083,63792.0,63791.0,1.91152742]
[1721382145215,0.00083,63792.0,63791.0,1.92081224]
[1721382145373,0.00183,63792.0,63791.0,1.93481224]
[1721382145579,0.00183,63792.0,63791.0,2.24833524]
[1721382145784,0.00183,63792.0,63791.0,2.34833524]
[1721382147032,0.00183,63792.0,63791.0,2.66185824]
[1721382147244,0.00183,63792.0,63791.0,2.79203965]
[1721382147677,0.00183,63792.0,63791.0,2.66185824]
[1721382147871,0.00183,63792.0,63791.0,2.79203843]
[1721382148070,0.00083,63792.0,63791.0,2.76403843]
[1721382148511,0.00183,63792.0,63791.0,2.47851543]
[1721382148646,0.00183,63792.0,63791.0,2.13809193]
[1721382148854,0.00183,63792.0,63791.0,2.14199243]
[1721382149058,0.00183,63792.0,63791.0,2.12799243]
[1721382149764,0.00183,63792.0,63791.0,1.99781224]
[1721382149909,0.00183,63792.0,63791.0,1.94781224]
[1721382150113,0.00183,63792.0,63791.0,2.02081224]
[1721382150494,0.00083,63792.0,63791.0,2.02081224]
[1721382150892,0.00083,63792.0,63791.0,2.03481224]
[1721382151219,0.00083,63792.0,63791.0,2.00681224]
[1721382151419,0.00083,63792.0,63791.0,2.03481224]
[1721382151613,0.00083,63792.0,63791.0,1.98481224]
[1721382152017,0.00083,63792.0,63791.0,2.03481224]
[1721382153427,0.00083,63792.0,63791.0,2.33433524]
[1721382153584,0.00083,63792.0,63791.0,2.32033524]
[1721382153785,0.00083,63792.0,63791.0,2.33433524]
[1721382154010,0.00083,63792.0,63791.0,2.34833524]
[1721382154856,0.00084,63808.0,63807.0,1.097057]
[1721382155299,0.00084,63808.0,63807.0,1.10062876]
[1721382155686,0.00084,63808.0,63807.0,1.2550105]
[1721382157451,0.00084,63808.0,63807.0,1.2660105]
[1721382158032,0.00084,63808.0,63807.0,1.2750105]
[1721382159714,0.0614,63812.0,63811.0,0.783562]
[1721382160336,0.0614,63812.0,63811.0,0.78713376]
[1721382161062,0.0614,63812.0,63811.0,0.79313376]
[1721382161732,0.0614,63812.0,63811.0,0.79813376]
[1721382164041,0.0614,63812.0,63811.0,1.11155876]
[1721382164191,0.00835,63824.0,63819.0,0.156691]
[1721382164192,0.1433,63823.0,63819.0,0.156691]
[1721382164396,0.1433,63823.0,63820.0,0.00355999]
[1721382164801,0.1433,63823.0,63820.0,0.16024999]
[1721382165680,0.0755,63821.0,63820.0,0.00355999]
[1721382165983,0.1388,63823.0,63811.0,0.319425]
[1721382166223,0.1388,63814.0,63812.0,0.00355999]
[1721382166398,0.292307,63813.0,63812.0,0.00355999]
[1721382166572,0.1356,63813.0,63812.0,0.15671]
[1721382166787,0.1356,63813.0,63812.0,0.16026999]
[1721382167742,0.1356,63813.0,63812.0,0.16126999]
[1721382168091,0.1356,63813.0,63812.0,0.16326999]